[Event "Elite Hotels Open 2023"]
[Site "Elite Stadshotellet, Kungsgatan 6, Vaxjo, Sweden"]
[Date "2023.02.11"]
[Round "5.8"]
[White "Jepson, Christian"]
[Black "Lindholm, Gustav"]
[Result "1-0"]
[TimeControl "15 minutes + 5 seconds per move from move one (Round 1 - 4) / 90 minutes + 30 seconds per move from move one (Round 5 - 8)"]
[WhiteTitle "IM"]
[WhiteFideId "1701185"]
[BlackFideId "1736515"]
[WhiteElo "2395"]
[BlackElo "2128"]

1. d4 {[%clk 01:30:58]} {[%emt 00:00:02]} d5 {[%clk 01:30:52]} {[%emt
00:00:08]} 2. c4 {[%clk 01:31:22]} {[%emt 00:00:06]} c6 {[%clk 01:31:17]}
{[%emt 00:00:04]} 3. Nf3 {[%clk 01:31:46]} {[%emt 00:00:07]} Nf6 {[%clk
01:31:41]} {[%emt 00:00:06]} 4. Nc3 {[%clk 01:32:10]} {[%emt 00:00:06]} dxc4
{[%clk 01:32:03]} {[%emt 00:00:08]} 5. a4 {[%clk 01:32:26]} {[%emt 00:00:14]}
Bf5 {[%clk 01:32:23]} {[%emt 00:00:09]} 6. e3 {[%clk 01:32:51]} {[%emt
00:00:06]} e6 {[%clk 01:32:36]} {[%emt 00:00:17]} 7. Bxc4 {[%clk 01:33:17]}
{[%emt 00:00:03]} Nbd7 {[%clk 01:32:53]} {[%emt 00:00:14]} 8. O-O {[%clk
01:33:39]} {[%emt 00:00:08]} Bb4 {[%clk 01:32:59]} {[%emt 00:00:24]} 9. Qe2
{[%clk 01:33:43]} {[%emt 00:00:26]} Bg6 {[%clk 01:32:08]} {[%emt 00:01:21]} 10.
e4 {[%clk 01:33:56]} {[%emt 00:00:16]} O-O {[%clk 01:32:19]} {[%emt 00:00:19]}
11. Bd3 {[%clk 01:33:39]} {[%emt 00:00:48]} Bh5 {[%clk 01:31:03]} {[%emt
00:01:47]} 12. e5 {[%clk 01:30:21]} {[%emt 00:03:48]} Nd5 {[%clk 01:31:19]}
{[%emt 00:00:14]} 13. Nxd5 {[%clk 01:30:45]} {[%emt 00:00:06]} cxd5 {[%clk
01:31:43]} {[%emt 00:00:06]} 14. Qe3 {[%clk 01:31:09]} {[%emt 00:00:05]} Be7
{[%clk 01:28:17]} {[%emt 00:03:57]} 15. Ng5 {[%clk 01:30:06]} {[%emt 00:01:32]}
Bxg5 {[%clk 01:24:30]} {[%emt 00:04:18]} 16. Qxg5 {[%clk 01:30:30]} {[%emt
00:00:06]} Bg6 {[%clk 01:24:26]} {[%emt 00:00:33]} 17. Be2 {[%clk 01:30:29]}
{[%emt 00:00:31]} Nb8 {[%clk 01:23:28]} {[%emt 00:01:28]} 18. Qe3 {[%clk
01:17:14]} {[%emt 00:13:45]} Nc6 {[%clk 01:20:07]} {[%emt 00:03:50]} 19. Bd2
{[%clk 01:17:29]} {[%emt 00:00:16]} a5 {[%clk 01:07:30]} {[%emt 00:13:07]} 20.
Bc3 {[%clk 01:10:15]} {[%emt 00:07:45]} Qe7 {[%clk 00:59:32]} {[%emt 00:08:27]}
21. Bb5 {[%clk 01:06:40]} {[%emt 00:04:07]} Rfc8 {[%clk 00:51:52]} {[%emt
00:08:09]} 22. Qd2 {[%clk 01:05:40]} {[%emt 00:01:31]} Na7 {[%clk 00:27:26]}
{[%emt 00:24:56]} 23. Be2 {[%clk 01:01:41]} {[%emt 00:04:28]} Rc6 {[%clk
00:23:11]} {[%emt 00:04:44]} 24. Qf4 {[%clk 00:55:13]} {[%emt 00:06:57]} Qd8
{[%clk 00:21:13]} {[%emt 00:02:28]} 25. h4 {[%clk 00:54:51]} {[%emt 00:00:52]}
h6 {[%clk 00:18:16]} {[%emt 00:03:26]} 26. Rfc1 {[%clk 00:53:46]} {[%emt
00:01:36]} Rac8 {[%clk 00:18:19]} {[%emt 00:00:27]} 27. h5 {[%clk 00:47:26]}
{[%emt 00:06:50]} Be4 {[%clk 00:18:31]} {[%emt 00:00:18]} 28. Re1 {[%clk
00:40:26]} {[%emt 00:07:30]} b6 {[%clk 00:14:05]} {[%emt 00:04:57]} 29. Bf1
{[%clk 00:37:40]} {[%emt 00:03:16]} Qg5 {[%clk 00:08:56]} {[%emt 00:05:38]} 30.
Qxg5 {[%clk 00:36:08]} {[%emt 00:02:03]} hxg5 {[%clk 00:09:21]} {[%emt
00:00:05]} 31. Rac1 {[%clk 00:36:27]} {[%emt 00:00:11]} Rb8 {[%clk 00:05:11]}
{[%emt 00:04:39]} 32. f3 {[%clk 00:29:49]} {[%emt 00:07:09]} Bh7 {[%clk
00:05:33]} {[%emt 00:00:08]} 33. Bd2 {[%clk 00:29:41]} {[%emt 00:00:39]} Bc2
{[%clk 00:04:33]} {[%emt 00:01:30]} 34. Ra1 {[%clk 00:27:49]} {[%emt 00:02:22]}
f6 {[%clk 00:04:47]} {[%emt 00:00:16]} 35. b4 {[%clk 00:15:41]} {[%emt
00:12:38]} axb4 {[%clk 00:05:10]} {[%emt 00:00:07]} 36. Bxb4 {[%clk 00:16:08]}
{[%emt 00:00:02]} Kf7 {[%clk 00:04:34]} {[%emt 00:01:06]} 37. Bd6 {[%clk
00:11:04]} {[%emt 00:05:35]} Rh8 {[%clk 00:02:50]} {[%emt 00:02:13]} 38. a5
{[%clk 00:09:24]} {[%emt 00:02:11]} bxa5 {[%clk 00:00:46]} {[%emt 00:02:33]} 39.
Rxa5 {[%clk 00:09:23]} {[%emt 00:00:31]} Nc8 {[%clk 00:00:55]} {[%emt
00:00:21]} 40. Bb5 {[%clk 00:09:04]} {[%emt 00:00:48]} Rc3 {[%clk 00:00:40]}
{[%emt 00:00:46]} 41. Bc5 {[%clk 00:07:54]} {[%emt 00:01:40]} Rxh5 {[%clk
00:00:31]} {[%emt 00:00:39]} 42. Ra8 {[%clk 00:07:41]} {[%emt 00:00:43]} Rh8
{[%clk 00:00:31]} {[%emt 00:00:30]} 43. Bd7 {[%clk 00:07:48]} {[%emt 00:00:24]}
Nb6 {[%clk 00:00:36]} {[%emt 00:00:24]} 44. Bxe6+ {[%clk 00:07:29]} {[%emt
00:00:49]} Kxe6 {[%clk 00:00:41]} {[%emt 00:00:26]} 45. Rxh8 {[%clk 00:07:55]}
{[%emt 00:00:03]} Nc4 {[%clk 00:00:31]} {[%emt 00:00:40]} 46. Re8+ {[%clk
00:07:16]} {[%emt 00:01:10]} Kf5 {[%clk 00:00:36]} {[%emt 00:00:25]} 47. e6
{[%clk 00:07:13]} {[%emt 00:00:33]} Kf4 {[%clk 00:00:34]} {[%emt 00:00:32]} 48.
e7 {[%clk 00:06:48]} {[%emt 00:00:55]} Bg6 {[%clk 00:01:01]} {[%emt 00:00:03]}
49. Rc8 {[%clk 00:06:29]} {[%emt 00:00:49]} Kg3 {[%clk 00:00:37]} {[%emt
00:00:54]} 50. Bd6+ {[%clk 00:02:38]} {[%emt 00:04:21]} Kh4 {[%clk 00:00:35]}
{[%emt 00:00:32]} 51. Rh8+ {[%clk 00:02:58]} {[%emt 00:00:09]} Bh5 {[%clk
00:00:57]} {[%emt 00:00:09]} 52. e8=Q {[%clk 00:03:05]} {[%emt 00:00:23]} 1-0

[Event "Elite Hotels Open 2023"]
[Site "Elite Stadshotellet, Kungsgatan 6, Vaxjo, Sweden"]
[Date "2023.02.11"]
[Round "5.9"]
[White "Golubka, Petro"]
[Black "Bouaziz, Nejib"]
[Result "1-0"]
[TimeControl "15 minutes + 5 seconds per move from move one (Round 1 - 4) / 90 minutes + 30 seconds per move from move one (Round 5 - 8)"]
[WhiteTitle "GM"]
[WhiteFideId "14114224"]
[BlackFideId "1704915"]
[WhiteElo "2363"]
[BlackElo "2046"]

1. e4 {[%clk 01:26:02]} {[%emt 00:04:58]} d6 {[%clk 01:30:34]} {[%emt
00:00:27]} 2. d4 {[%clk 01:25:18]} {[%emt 00:01:14]} Nf6 {[%clk 01:30:46]}
{[%emt 00:00:17]} 3. f3 {[%clk 01:25:46]} {[%emt 00:00:03]} g6 {[%clk
01:28:55]} {[%emt 00:02:22]} 4. Be3 {[%clk 01:26:08]} {[%emt 00:00:08]} Bg7
{[%clk 01:29:16]} {[%emt 00:00:08]} 5. Qd2 {[%clk 01:26:24]} {[%emt 00:00:14]}
e5 {[%clk 01:27:10]} {[%emt 00:02:36]} 6. d5 {[%clk 01:25:43]} {[%emt
00:01:12]} c5 {[%clk 01:27:02]} {[%emt 00:00:37]} 7. a4 {[%clk 01:25:55]}
{[%emt 00:00:19]} Na6 {[%clk 01:27:00]} {[%emt 00:00:32]} 8. Na3 {[%clk
01:26:11]} {[%emt 00:00:13]} Nc7 {[%clk 01:27:21]} {[%emt 00:00:09]} 9. Ne2
{[%clk 01:26:25]} {[%emt 00:00:16]} Rb8 {[%clk 01:27:23]} {[%emt 00:00:28]} 10.
Nc3 {[%clk 01:26:17]} {[%emt 00:00:39]} b6 {[%clk 01:25:31]} {[%emt 00:02:22]}
11. Rb1 {[%clk 01:23:34]} {[%emt 00:03:14]} O-O {[%clk 01:03:27]} {[%emt
00:22:33]} 12. Be2 {[%clk 01:19:59]} {[%emt 00:04:05]} Bd7 {[%clk 00:52:58]}
{[%emt 00:10:59]} 13. Nab5 {[%clk 01:16:13]} {[%emt 00:04:17]} Nxb5 {[%clk
00:53:05]} {[%emt 00:00:23]} 14. axb5 {[%clk 01:16:30]} {[%emt 00:00:12]} Ra8
{[%clk 00:52:55]} {[%emt 00:00:40]} 15. O-O {[%clk 01:14:22]} {[%emt 00:02:38]}
Ne8 {[%clk 00:51:56]} {[%emt 00:01:29]} 16. b4 {[%clk 01:14:04]} {[%emt
00:00:48]} f5 {[%clk 00:50:44]} {[%emt 00:01:42]} 17. bxc5 {[%clk 01:13:03]}
{[%emt 00:01:31]} bxc5 {[%clk 00:50:55]} {[%emt 00:00:19]} 18. Ra1 {[%clk
01:12:15]} {[%emt 00:01:18]} f4 {[%clk 00:49:57]} {[%emt 00:01:28]} 19. Bf2
{[%clk 01:12:39]} {[%emt 00:00:06]} Nc7 {[%clk 00:47:27]} {[%emt 00:03:00]} 20.
Ra5 {[%clk 01:12:36]} {[%emt 00:00:31]} Rb8 {[%clk 00:47:30]} {[%emt 00:00:29]}
21. Rfa1 {[%clk 01:12:13]} {[%emt 00:00:53]} g5 {[%clk 00:46:31]} {[%emt
00:01:30]} 22. g4 {[%clk 01:11:38]} {[%emt 00:01:05]} Rb7 {[%clk 00:28:19]}
{[%emt 00:18:41]} 23. Rxa7 {[%clk 01:11:38]} {[%emt 00:00:30]} Rxa7 {[%clk
00:28:37]} {[%emt 00:00:13]} 24. Rxa7 {[%clk 01:12:07]} {[%emt 00:00:01]} Qb8
{[%clk 00:28:55]} {[%emt 00:00:11]} 25. Ra5 {[%clk 01:12:26]} {[%emt 00:00:10]}
Qb7 {[%clk 00:28:25]} {[%emt 00:01:01]} 26. Qc1 {[%clk 01:11:31]} {[%emt
00:01:25]} Ra8 {[%clk 00:27:20]} {[%emt 00:01:34]} 27. Qa3 {[%clk 01:11:53]}
{[%emt 00:00:08]} Bf6 {[%clk 00:26:58]} {[%emt 00:00:52]} 28. b6 {[%clk
01:10:48]} {[%emt 00:01:36]} Rxa5 {[%clk 00:26:50]} {[%emt 00:00:38]} 29. Qxa5
{[%clk 01:11:17]} {[%emt 00:00:01]} Na8 {[%clk 00:26:27]} {[%emt 00:00:52]} 30.
Qa7 {[%clk 01:11:40]} {[%emt 00:00:07]} Bc8 {[%clk 00:26:32]} {[%emt 00:00:25]}
31. Nb5 {[%clk 01:11:36]} {[%emt 00:00:34]} Be7 {[%clk 00:25:47]} {[%emt
00:01:15]} 32. Bxc5 {[%clk 00:58:14]} {[%emt 00:13:51]} dxc5 {[%clk 00:22:50]}
{[%emt 00:03:28]} 33. d6 {[%clk 00:58:21]} {[%emt 00:00:23]} Qxa7 {[%clk
00:14:48]} {[%emt 00:08:33]} 34. bxa7 {[%clk 00:50:51]} {[%emt 00:08:00]} Bd8
{[%clk 00:13:58]} {[%emt 00:01:19]} 35. Bc4+ {[%clk 00:51:04]} {[%emt
00:00:17]} Kf8 {[%clk 00:14:20]} {[%emt 00:00:07]} 36. Bd5 {[%clk 00:51:27]}
{[%emt 00:00:09]} Nb6 {[%clk 00:13:34]} {[%emt 00:01:16]} 37. d7 {[%clk
00:48:10]} {[%emt 00:03:47]} Bxd7 {[%clk 00:08:35]} {[%emt 00:05:29]} 38. Nd6
{[%clk 00:47:57]} {[%emt 00:00:40]} Na8 {[%clk 00:08:40]} {[%emt 00:00:27]} 39.
Nc4 {[%clk 00:40:27]} {[%emt 00:08:00]} Bb6 {[%clk 00:05:26]} {[%emt 00:03:41]}
40. Nxe5 {[%clk 00:38:31]} {[%emt 00:02:29]} Be8 {[%clk 00:05:38]} {[%emt
00:00:18]} 41. Bxa8 {[%clk 00:38:35]} {[%emt 00:00:25]} Bxa7 {[%clk 00:05:50]}
{[%emt 00:00:17]} 42. Bd5 {[%clk 00:33:49]} {[%emt 00:05:17]} Bb8 {[%clk
00:03:22]} {[%emt 00:02:57]} 43. Nd3 {[%clk 00:33:53]} {[%emt 00:00:23]} Ba4
{[%clk 00:00:38]} {[%emt 00:03:17]} 44. Bb3 {[%clk 00:33:50]} {[%emt 00:00:31]}
1-0

[Event "Elite Hotels Open 2023"]
[Site "Elite Stadshotellet, Kungsgatan 6, Vaxjo, Sweden"]
[Date "2023.02.11"]
[Round "5.10"]
[White "Poley, Vladimir"]
[Black "Eriksson, Christian Altenburg"]
[Result "1-0"]
[TimeControl "15 minutes + 5 seconds per move from move one (Round 1 - 4) / 90 minutes + 30 seconds per move from move one (Round 5 - 8)"]
[WhiteTitle "IM"]
[WhiteFideId "13500090"]
[BlackFideId "1412159"]
[WhiteElo "2325"]
[BlackElo "2104"]

1. Nf3 {[%clk 01:30:59]} {[%emt 11:49:08]} c5 {[%clk 01:30:44]} {[%emt
00:00:16]} 2. g3 {[%clk 01:31:23]} {[%emt 00:00:07]} g6 {[%clk 01:30:46]}
{[%emt 00:00:28]} 3. Bg2 {[%clk 01:31:47]} {[%emt 00:00:06]} Bg7 {[%clk
01:30:58]} {[%emt 00:00:17]} 4. O-O {[%clk 01:32:11]} {[%emt 00:00:07]} Nc6
{[%clk 01:30:43]} {[%emt 00:00:45]} 5. e3 {[%clk 01:32:35]} {[%emt 00:00:07]}
d5 {[%clk 01:29:08]} {[%emt 00:02:04]} 6. d4 {[%clk 01:32:59]} {[%emt
00:00:06]} cxd4 {[%clk 01:25:25]} {[%emt 00:04:13]} 7. exd4 {[%clk 01:33:23]}
{[%emt 00:00:06]} Nf6 {[%clk 01:25:05]} {[%emt 00:00:50]} 8. c3 {[%clk
01:32:42]} {[%emt 00:01:10]} O-O {[%clk 01:23:53]} {[%emt 00:01:42]} 9. Re1
{[%clk 01:33:04]} {[%emt 00:00:08]} e6 {[%clk 01:20:14]} {[%emt 00:04:09]} 10.
Na3 {[%clk 01:26:37]} {[%emt 00:06:58]} b6 {[%clk 01:16:50]} {[%emt 00:03:54]}
11. Bf4 {[%clk 01:22:06]} {[%emt 00:05:01]} Bb7 {[%clk 01:11:39]} {[%emt
00:05:41]} 12. h4 {[%clk 01:18:00]} {[%emt 00:04:36]} Rc8 {[%clk 01:06:02]}
{[%emt 00:06:07]} 13. Bh3 {[%clk 01:18:03]} {[%emt 00:00:27]} Re8 {[%clk
01:01:07]} {[%emt 00:05:25]} 14. Nb5 {[%clk 01:06:12]} {[%emt 00:12:20]} Ne4
{[%clk 00:53:58]} {[%emt 00:07:40]} 15. Rxe4 {[%clk 01:00:07]} {[%emt
00:06:35]} dxe4 {[%clk 00:53:08]} {[%emt 00:01:20]} 16. Nd6 {[%clk 01:00:10]}
{[%emt 00:00:27]} exf3 {[%clk 00:45:09]} {[%emt 00:08:29]} 17. Nxb7 {[%clk
01:00:21]} {[%emt 00:00:19]} Qd5 {[%clk 00:43:05]} {[%emt 00:02:33]} 18. Nd6
{[%clk 00:57:57]} {[%emt 00:02:55]} f5 {[%clk 00:36:26]} {[%emt 00:07:09]} 19.
Bf1 {[%clk 00:52:41]} {[%emt 00:05:46]} Na5 {[%clk 00:34:25]} {[%emt 00:02:30]}
20. Ba6 {[%clk 00:40:12]} {[%emt 00:12:58]} Rcd8 {[%clk 00:33:33]} {[%emt
00:01:23]} 21. Nxe8 {[%clk 00:40:32]} {[%emt 00:00:10]} Rxe8 {[%clk 00:33:48]}
{[%emt 00:00:14]} 22. Qa4 {[%clk 00:39:01]} {[%emt 00:02:01]} Kf7 {[%clk
00:31:04]} {[%emt 00:03:14]} 23. Re1 {[%clk 00:37:50]} {[%emt 00:01:41]} Re7
{[%clk 00:27:16]} {[%emt 00:04:17]} 24. b4 {[%clk 00:28:47]} {[%emt 00:09:34]}
Nb7 {[%clk 00:21:16]} {[%emt 00:06:30]} 25. Bb5 {[%clk 00:26:25]} {[%emt
00:02:52]} Nd8 {[%clk 00:17:41]} {[%emt 00:04:05]} 26. Be3 {[%clk 00:22:56]}
{[%emt 00:03:58]} Bf6 {[%clk 00:12:29]} {[%emt 00:05:43]} 27. Bh6 {[%clk
00:18:59]} {[%emt 00:04:27]} Nb7 {[%clk 00:10:42]} {[%emt 00:02:17]} 28. Bc6
{[%clk 00:19:08]} {[%emt 00:00:20]} Qc4 {[%clk 00:10:31]} {[%emt 00:00:43]} 29.
Re3 {[%clk 00:18:32]} {[%emt 00:01:05]} Nd6 {[%clk 00:08:49]} {[%emt 00:02:11]}
30. Bxf3 {[%clk 00:17:36]} {[%emt 00:01:26]} f4 {[%clk 00:08:19]} {[%emt
00:00:59]} 31. Bxf4 {[%clk 00:16:23]} {[%emt 00:01:43]} Nf5 {[%clk 00:08:18]}
{[%emt 00:00:32]} 32. Be2 {[%clk 00:15:34]} {[%emt 00:01:20]} Qd5 {[%clk
00:08:03]} {[%emt 00:00:45]} 33. Rd3 {[%clk 00:14:39]} {[%emt 00:01:25]} Qe4
{[%clk 00:07:05]} {[%emt 00:01:28]} 34. Be3 {[%clk 00:10:52]} {[%emt 00:04:17]}
g5 {[%clk 00:04:48]} {[%emt 00:02:47]} 35. hxg5 {[%clk 00:07:46]} {[%emt
00:03:36]} Bxg5 {[%clk 00:04:28]} {[%emt 00:00:50]} 36. Bxg5 {[%clk 00:06:51]}
{[%emt 00:01:25]} Qxe2 {[%clk 00:04:51]} {[%emt 00:00:06]} 37. Qd1 {[%clk
00:07:12]} {[%emt 00:00:09]} Qxd1+ {[%clk 00:04:50]} {[%emt 00:00:32]} 38. Rxd1
{[%clk 00:07:37]} {[%emt 00:00:05]} Rc7 {[%clk 00:05:15]} {[%emt 00:00:05]} 39.
Rd3 {[%clk 00:06:37]} {[%emt 00:01:28]} Rc4 {[%clk 00:05:23]} {[%emt 00:00:23]}
40. Bd2 {[%clk 00:05:50]} {[%emt 00:01:17]} a5 {[%clk 00:05:18]} {[%emt
00:00:36]} 41. a3 {[%clk 00:05:31]} {[%emt 00:00:49]} Nd6 {[%clk 00:05:20]}
{[%emt 00:00:27]} 42. Bc1 {[%clk 00:05:10]} {[%emt 00:00:50]} a4 {[%clk
00:04:02]} {[%emt 00:01:49]} 43. Kf1 {[%clk 00:05:16]} {[%emt 00:00:23]} Nb5
{[%clk 00:03:27]} {[%emt 00:01:05]} 44. Bb2 {[%clk 00:05:41]} {[%emt 00:00:06]}
Nc7 {[%clk 00:03:37]} {[%emt 00:00:21]} 45. Ke2 {[%clk 00:05:50]} {[%emt
00:00:20]} Nd5 {[%clk 00:03:49]} {[%emt 00:00:18]} 46. Rf3+ {[%clk 00:06:07]}
{[%emt 00:00:14]} Ke7 {[%clk 00:04:06]} {[%emt 00:00:12]} 47. g4 {[%clk
00:05:52]} {[%emt 00:00:45]} b5 {[%clk 00:04:30]} {[%emt 00:00:07]} 48. Kd2
{[%clk 00:05:21]} {[%emt 00:01:00]} Rc8 {[%clk 00:04:33]} {[%emt 00:00:27]} 49.
Rh3 {[%clk 00:05:21]} {[%emt 00:00:28]} Rh8 {[%clk 00:04:42]} {[%emt 00:00:23]}
50. Bc1 {[%clk 00:04:52]} {[%emt 00:00:57]} Kf7 {[%clk 00:04:02]} {[%emt
00:01:11]} 51. Kd3 {[%clk 00:04:25]} {[%emt 00:00:57]} Nf6 {[%clk 00:03:17]}
{[%emt 00:01:15]} 52. f3 {[%clk 00:03:59]} {[%emt 00:00:57]} Nd5 {[%clk
00:03:38]} {[%emt 00:00:09]} 53. Bd2 {[%clk 00:04:10]} {[%emt 00:00:18]} Kg7
{[%clk 00:02:55]} {[%emt 00:01:14]} 54. Rh6 {[%clk 00:03:53]} {[%emt 00:00:46]}
Kf7 {[%clk 00:02:21]} {[%emt 00:01:05]} 55. g5 {[%clk 00:03:56]} {[%emt
00:00:26]} Ne7 {[%clk 00:02:25]} {[%emt 00:00:26]} 56. Rf6+ {[%clk 00:04:18]}
{[%emt 00:00:07]} 1-0

[Event "Elite Hotels Open 2023"]
[Site "Elite Stadshotellet, Kungsgatan 6, Vaxjo, Sweden"]
[Date "2023.02.11"]
[Round "5.11"]
[White "Strom-Engdahl, Alexander"]
[Black "Bellon Lopez, Juan Manuel"]
[Result "1/2-1/2"]
[TimeControl "15 minutes + 5 seconds per move from move one (Round 1 - 4) / 90 minutes + 30 seconds per move from move one (Round 5 - 8)"]
[BlackTitle "GM"]
[WhiteFideId "1741586"]
[BlackFideId "2200031"]
[WhiteElo "2097"]
[BlackElo "2303"]

1. c4 {[%clk 01:30:33]} {[%emt 00:00:28]} c5 {[%clk 01:30:46]} {[%emt
00:00:14]} 2. Nc3 {[%clk 01:30:55]} {[%emt 00:00:08]} g6 {[%clk 01:30:56]}
{[%emt 00:00:20]} 3. e3 {[%clk 01:31:18]} {[%emt 00:00:06]} Bg7 {[%clk
01:31:16]} {[%emt 00:00:11]} 4. g3 {[%clk 01:31:41]} {[%emt 00:00:07]} Nc6
{[%clk 01:31:33]} {[%emt 00:00:14]} 5. Bg2 {[%clk 01:32:00]} {[%emt 00:00:08]}
e5 {[%clk 01:31:37]} {[%emt 00:00:28]} 6. Nge2 {[%clk 01:31:35]} {[%emt
00:00:54]} Nge7 {[%clk 01:28:53]} {[%emt 00:03:15]} 7. O-O {[%clk 01:30:56]}
{[%emt 00:01:09]} O-O {[%clk 01:28:32]} {[%emt 00:00:51]} 8. a3 {[%clk
01:28:50]} {[%emt 00:02:36]} d6 {[%clk 01:26:20]} {[%emt 00:02:42]} 9. Nd5
{[%clk 01:23:22]} {[%emt 00:05:58]} Rb8 {[%clk 01:25:18]} {[%emt 00:01:32]} 10.
Nec3 {[%clk 01:16:43]} {[%emt 00:07:09]} f5 {[%clk 01:13:37]} {[%emt 00:12:10]}
11. d3 {[%clk 01:12:16]} {[%emt 00:04:58]} a6 {[%clk 01:10:40]} {[%emt
00:03:27]} 12. b4 {[%clk 01:00:37]} {[%emt 00:12:09]} b5 {[%clk 01:01:27]}
{[%emt 00:09:42]} 13. Rb1 {[%clk 00:51:05]} {[%emt 00:10:03]} bxc4 {[%clk
00:52:30]} {[%emt 00:09:27]} 14. dxc4 {[%clk 00:50:58]} {[%emt 00:00:36]} e4
{[%clk 00:45:16]} {[%emt 00:07:44]} 15. Nxe7+ {[%clk 00:45:17]} {[%emt
00:06:12]} Nxe7 {[%clk 00:44:58]} {[%emt 00:00:48]} 16. Nd5 {[%clk 00:45:18]}
{[%emt 00:00:28]} Be6 {[%clk 00:41:53]} {[%emt 00:03:35]} 17. Qc2 {[%clk
00:41:04]} {[%emt 00:04:45]} cxb4 {[%clk 00:37:53]} {[%emt 00:04:31]} 18. axb4
{[%clk 00:35:29]} {[%emt 00:06:05]} Nxd5 {[%clk 00:36:21]} {[%emt 00:02:02]} 19.
cxd5 {[%clk 00:35:46]} {[%emt 00:00:13]} Bd7 {[%clk 00:36:41]} {[%emt
00:00:09]} 20. Bb2 {[%clk 00:30:00]} {[%emt 00:06:17]} Bb5 {[%clk 00:31:01]}
{[%emt 00:06:10]} 21. Bxg7 {[%clk 00:30:04]} {[%emt 00:00:26]} Kxg7 {[%clk
00:27:55]} {[%emt 00:03:36]} 22. Rfc1 {[%clk 00:30:13]} {[%emt 00:00:21]} Bd3
{[%clk 00:24:39]} {[%emt 00:03:46]} 23. Qc3+ {[%clk 00:28:14]} {[%emt
00:02:30]} Kg8 {[%clk 00:22:47]} {[%emt 00:02:20]} 24. Ra1 {[%clk 00:27:53]}
{[%emt 00:00:51]} Qd7 {[%clk 00:15:14]} {[%emt 00:08:03]} 25. Bf1 {[%clk
00:25:09]} {[%emt 00:03:14]} Rfc8 {[%clk 00:11:29]} {[%emt 00:04:15]} 26. Qd4
{[%clk 00:24:12]} {[%emt 00:01:27]} Qg7 {[%clk 00:08:52]} {[%emt 00:03:08]} 27.
Qxg7+ {[%clk 00:16:23]} {[%emt 00:08:18]} Kxg7 {[%clk 00:09:19]} {[%emt
00:00:03]} 28. Rd1 {[%clk 00:14:07]} {[%emt 00:02:46]} Bxf1 {[%clk 00:08:52]}
{[%emt 00:00:58]} 29. Rxf1 {[%clk 00:13:13]} {[%emt 00:01:25]} Rb6 {[%clk
00:09:03]} {[%emt 00:00:18]} 30. Ra5 {[%clk 00:12:20]} {[%emt 00:01:23]} Kf6
{[%clk 00:09:00]} {[%emt 00:00:33]} 31. Rfa1 {[%clk 00:12:10]} {[%emt
00:00:40]} Ke5 {[%clk 00:09:03]} {[%emt 00:00:26]} 32. Rxa6 {[%clk 00:12:22]}
{[%emt 00:00:19]} Rxa6 {[%clk 00:05:05]} {[%emt 00:04:28]} 33. Rxa6 {[%clk
00:12:46]} {[%emt 00:00:06]} Rc7 {[%clk 00:04:48]} {[%emt 00:00:47]} 34. Ra5
{[%clk 00:12:29]} {[%emt 00:00:47]} Rb7 {[%clk 00:05:05]} {[%emt 00:00:13]} 35.
h4 {[%clk 00:12:42]} {[%emt 00:00:18]} h6 {[%clk 00:05:00]} {[%emt 00:00:35]}
36. Ra8 {[%clk 00:12:24]} {[%emt 00:00:48]} Rxb4 {[%clk 00:05:07]} {[%emt
00:00:22]} 37. Rh8 {[%clk 00:12:36]} {[%emt 00:00:18]} g5 {[%clk 00:02:47]}
{[%emt 00:02:49]} 38. h5 {[%clk 00:11:50]} {[%emt 00:01:17]} f4 {[%clk
00:01:07]} {[%emt 00:02:10]} 39. gxf4+ {[%clk 00:11:38]} {[%emt 00:00:43]} gxf4
{[%clk 00:01:36]} {[%emt 00:00:01]} 40. exf4+ {[%clk 00:11:57]} {[%emt
00:00:11]} Kxd5 {[%clk 00:00:41]} {[%emt 00:01:25]} 41. Rxh6 {[%clk 00:12:20]}
{[%emt 00:00:07]} Rb8 {[%clk 00:01:01]} {[%emt 00:00:10]} 42. Rg6 {[%clk
00:12:30]} {[%emt 00:00:20]} Rf8 {[%clk 00:01:00]} {[%emt 00:00:30]} 43. Rg5+
{[%clk 00:11:24]} {[%emt 00:01:36]} Ke6 {[%clk 00:01:18]} {[%emt 00:00:11]} 44.
h6 {[%clk 00:11:17]} {[%emt 00:00:39]} Rxf4 {[%clk 00:01:04]} {[%emt 00:00:45]}
45. Rh5 {[%clk 00:11:39]} {[%emt 00:00:07]} Rf8 {[%clk 00:01:24]} {[%emt
00:00:09]} 46. h7 {[%clk 00:12:06]} {[%emt 00:00:04]} Rh8 {[%clk 00:01:52]}
{[%emt 00:00:02]} 47. Rh6+ {[%clk 00:12:31]} {[%emt 00:00:05]} Kf5 {[%clk
00:01:00]} {[%emt 00:01:21]} 48. Rxd6 {[%clk 00:12:32]} {[%emt 00:00:29]} Rxh7
{[%clk 00:01:28]} {[%emt 00:00:02]} 49. Kf1 {[%clk 00:12:41]} {[%emt 00:00:21]}
Ra7 {[%clk 00:01:45]} {[%emt 00:00:14]} 50. Ke2 {[%clk 00:12:52]} {[%emt
00:00:19]} Kf4 {[%clk 00:02:08]} {[%emt 00:00:07]} 51. Rf6+ {[%clk 00:13:18]}
{[%emt 00:00:04]} Ke5 {[%clk 00:02:33]} {[%emt 00:00:06]} 52. Rf8 {[%clk
00:13:43]} {[%emt 00:00:04]} Ra2+ {[%clk 00:02:39]} {[%emt 00:00:23]} 53. Ke3
{[%clk 00:14:01]} {[%emt 00:00:13]} Ra3+ {[%clk 00:03:05]} {[%emt 00:00:05]} 54.
Ke2 {[%clk 00:14:24]} {[%emt 00:00:06]} Ra6 {[%clk 00:03:06]} {[%emt 00:00:29]}
55. Re8+ {[%clk 00:14:47]} {[%emt 00:00:08]} Re6 {[%clk 00:03:24]} {[%emt
00:00:11]} 56. Rxe6+ {[%clk 00:15:12]} {[%emt 00:00:05]} Kxe6 {[%clk 00:03:51]}
{[%emt 00:00:03]} 57. f3 {[%clk 00:15:34]} {[%emt 00:00:08]} exf3+ {[%clk
00:04:18]} {[%emt 00:00:03]} 58. Kxf3 {[%clk 00:16:02]} {[%emt 00:00:01]}
1/2-1/2